bitfinex-derivatives/quotes_ETHF0:USTF0_20250531
["timestamp","ask_amount","ask_price","bid_price","bid_amount"]
[1748696059012,2.06315,2533.6,2533.5,0.78906]
[1748696059505,2.06315,2533.6,2533.4,3.2078]
[1748696059707,0.78906,2533.5,2533.4,2.08788]
[1748696059910,2.06315,2533.6,2533.5,0.78906]
[1748696060213,0.78905,2533.5,2533.4,2.08785]
[1748696060412,2.06314,2533.6,2533.5,0.78904]
[1748696060602,0.78904,2533.5,2533.4,2.08785]
[1748696061113,2.06313,2533.6,2533.5,0.78904]
[1748696061319,0.6344,2533.7,2533.6,0.78901]
[1748696061517,1.42338,2533.7,2533.6,0.78901]
[1748696062717,0.78901,2533.6,2533.5,1.45932]
[1748696063614,0.78901,2533.6,2533.5,2.81252]
[1748696063913,0.00591949,2533.8,2533.7,0.78898]
[1748696065605,0.00591949,2533.8,2533.7,2.14218]
[1748696067715,0.00591949,2533.8,2533.7,5.96898]
[1748696068315,0.00591949,2533.8,2533.7,9.08136416]
[1748696071323,9.49e-06,2533.8,2533.7,5.96898]
[1748696071518,9.49e-06,2533.8,2533.7,10.96898]
[1748696080329,3.2078,2534.8,2534.7,0.78867]
[1748696081127,3.99644,2534.8,2534.7,0.78867]
[1748696081332,0.78872,2534.6,2534.5,0.00591949]
[1748696082225,0.78872,2534.6,2534.5,0.79464949]
[1748696083230,2.03469,2534.7,2534.6,0.7887]
[1748696083930,1.246,2534.7,2534.6,0.7887]
[1748696084430,0.6755,2534.8,2534.7,0.78867]
[1748696084626,0.6437,2534.9,2534.8,0.78864]
[1748696089635,1.8799,2534.9,2534.8,0.78864]
[1748696091028,2.66851,2534.9,2534.8,0.78864]
[1748696091233,1.8799,2534.9,2534.8,0.78864]
[1748696093133,0.6437,2534.9,2534.8,0.78864]
[1748696093334,0.6437,2534.9,2534.8,2.14324]
[1748696093530,0.6437,2534.9,2534.8,0.78864]
[1748696094139,0.6437,2534.9,2534.8,2.14324]
[1748696095246,0.67441949,2535.0,2534.9,0.78861]
[1748696095843,0.67441949,2535.0,2534.9,1.43241]
[1748696096030,0.00591949,2535.0,2534.9,1.43241]
[1748696096234,0.78861,2534.9,2534.8,0.78861]
[1748696096435,0.00591949,2535.0,2534.9,0.78861]
[1748696096630,0.00591949,2535.0,2534.7,6.32566338]
[1748696096836,3.99644,2534.8,2534.7,3.11786338]
[1748696097041,0.78867,2534.7,2534.6,3.11786338]
[1748696097340,1.46977,2534.7,2534.6,3.11786338]
[1748696097537,6.3081,2534.7,2534.6,3.90656338]
[1748696097841,7.09677,2534.7,2534.6,3.11786338]
[1748696098042,0.7887,2534.6,2534.5,0.79462949]
[1748696098236,6.3081,2534.7,2534.6,0.7887]
[1748696098237,1.3081,2534.7,2534.6,0.7887]
[1748696098448,2.09678,2534.7,2534.6,0.7887]
[1748696099538,1.3081,2534.7,2534.6,0.7887]
[1748696099939,2.09677,2534.7,2534.5,0.79462949]
[1748696100140,0.7887,2534.6,2534.5,0.79462949]
[1748696100445,0.7887,2534.6,2534.5,0.00591949]
[1748696100644,5.7887,2534.6,2534.5,0.00591949]
[1748696101643,5.7887,2534.6,2534.5,0.79464949]
[1748696101644,5.0,2534.6,2534.5,0.79464949]
[1748696101946,2.09679,2534.7,2534.6,0.7887]
[1748696102745,2.09679,2534.7,2534.5,0.79461949]
[1748696102746,0.7887,2534.6,2534.5,0.79461949]
[1748696103140,2.09678,2534.7,2534.6,0.7887]
[1748696103543,0.7887,2534.6,2534.5,0.00591949]
[1748696103939,0.7887,2534.6,2534.5,0.79464949]
[1748696104539,0.7887,2534.6,2534.5,0.00591949]
[1748696104743,0.7887,2534.6,2534.5,0.79464949]
[1748696105248,0.7887,2534.6,2534.5,0.00591949]
[1748696105447,0.7887,2534.6,2534.5,0.79464949]
[1748696106049,0.7887,2534.6,2534.5,0.00591949]
[1748696106252,0.7887,2534.6,2534.5,0.79464949]
[1748696106750,0.7887,2534.6,2534.5,0.00591949]
[1748696107047,5.7887,2534.6,2534.5,0.00591949]
[1748696109850,1.3081,2534.7,2534.6,0.7887]
[1748696110053,1.3081,2534.7,2534.5,0.79462949]
[1748696110350,0.7887,2534.6,2534.5,0.79462949]
[1748696110952,2.09679,2534.7,2534.6,0.7887]
[1748696111449,1.41569,2534.7,2534.6,1.4349]
[1748696111651,1.41569,2534.7,2534.6,2.7203]
[1748696112151,0.78869,2534.7,2534.6,2.7203]
[1748696112340,3.2078,2534.8,2534.6,1.9316]
[1748696112545,0.79451949,2535.0,2534.9,0.78861]
[1748696112754,2.36576642,2535.8,2535.7,0.78836]
[1748696112947,3.15435523,2536.1,2536.0,0.78826]
[1748696113148,3.15435523,2536.1,2536.0,3.2078]
[1748696113351,3.94258523,2536.1,2536.0,3.2078]
[1748696113554,0.78823,2536.1,2536.0,3.2078]
[1748696113949,0.7883,2535.9,2535.8,0.00591949]
[1748696114646,1.4566,2535.9,2535.8,0.00591949]
[1748696115150,9.6644,2535.9,2535.8,0.00591949]
[1748696115346,32.2094,2535.9,2535.8,0.00591949]
[1748696116151,9.6644,2535.9,2535.8,0.00591949]
[1748696116356,1.4566,2535.9,2535.8,0.00591949]
[1748696116562,2.6923,2535.9,2535.8,0.00591949]
[1748696116859,7.6923,2535.9,2535.8,0.00591949]
[1748696121248,0.78845,2535.4,2535.3,3.2078]
[1748696122360,2.06675,2535.4,2535.3,3.2078]
[1748696122861,0.78845,2535.4,2535.3,3.2078]
[1748696124957,2.13035,2535.4,2535.3,3.2078]
[1748696127469,2.13035,2535.4,2535.3,3.99628]
[1748696127664,0.78845,2535.4,2535.3,3.99628]
[1748696127859,0.78845,2535.4,2535.3,3.2078]
[1748696128560,0.78845,2535.4,2535.3,4.4892]
[1748696132861,0.78845,2535.4,2535.3,3.2078]
[1748696133069,0.78845,2535.4,2535.1,0.00591949]
[1748696133070,0.78851,2535.2,2535.1,0.00591949]
[1748696133365,4.86051,2535.2,2535.1,0.00591949]
[1748696137264,9.86051,2535.2,2535.1,0.00591949]
[1748696141276,5.78851,2535.2,2535.1,0.00591949]
[1748696141468,4.86051,2535.2,2535.1,0.00591949]
[1748696141769,23.25751,2535.2,2535.1,0.00591949]
[1748696142070,4.86051,2535.2,2535.1,0.00591949]
[1748696142275,4.86051,2535.2,2535.1,1.31221949]
[1748696145275,4.86051,2535.2,2535.1,0.00591949]
[1748696147977,9.86051,2535.2,2535.1,9.49e-06]
[1748696149385,10.84336659,2535.2,2535.1,9.49e-06]
[1748696153080,1.77136659,2535.2,2535.1,9.49e-06]
[1748696153280,24.17736659,2535.2,2535.1,9.49e-06]
[1748696153986,23.19451,2535.2,2535.1,9.49e-06]
[1748696154287,0.78851,2535.2,2535.1,9.49e-06]
[1748696154487,23.19851,2535.2,2535.1,9.49e-06]
[1748696155284,4.84151,2535.2,2535.1,9.49e-06]
[1748696155586,23.19351,2535.2,2535.1,9.49e-06]
[1748696155788,23.19351,2535.2,2535.1,0.67980949]
[1748696157290,4.84151,2535.2,2535.1,0.67980949]
[1748696157985,4.84151,2535.2,2535.1,2.00720949]
[1748696158482,0.78851,2535.2,2535.1,2.79574949]
[1748696158692,0.78851,2535.2,2535.1,2.00720949]
[1748696161181,0.78851,2535.2,2535.1,2.79574949]
[1748696161487,0.78851,2535.2,2535.1,2.00720949]
[1748696162297,0.78851,2535.2,2535.1,2.79574949]
[1748696163197,0.7885,2535.3,2535.2,0.7885]
[1748696163399,0.78848,2535.3,2535.2,2.0365]
[1748696163601,4.84143,2535.5,2535.4,0.78845]
[1748696163800,0.00591949,2535.6,2535.3,4.4558]
[1748696164099,0.00591949,2535.6,2535.2,5.0]
[1748696164100,0.79432949,2535.6,2535.5,0.78842]
[1748696164288,0.00591949,2535.6,2535.5,0.78842]
[1748696165501,0.78828,2536.0,2535.9,0.78828]
[1748696165705,4.053,2536.2,2535.9,3.99608]
[1748696165998,0.78826,2536.1,2536.0,1.866]
[1748696166594,0.78826,2536.1,2536.0,1.248]
[1748696166794,0.78836,2535.7,2535.6,3.8258]
[1748696167699,0.78832,2535.9,2535.7,0.78836]
[1748696167904,4.053,2536.1,2535.6,3.8258]
[1748696168203,0.78826,2536.1,2535.7,1.3152]
[1748696168393,0.78823,2536.2,2536.0,0.78826]
[1748696168593,0.7882,2536.2,2536.1,1.3152]
[1748696169795,3.21371,2536.3,2536.1,1.3152]
[1748696169996,4.00189,2536.3,2536.2,0.6525]
[1748696171502,4.00189,2536.3,2536.2,1.9341]
[1748696171997,4.00188,2536.3,2536.2,1.9341]
[1748696172298,0.00591,2536.3,2536.2,2.7223]
[1748696172708,0.79408,2536.3,2536.2,5.9301]
[1748696172903,0.79408,2536.3,2536.2,5.1419]
[1748696173304,0.79408,2536.3,2536.2,5.9301]
[1748696174208,0.79408,2536.3,2536.2,5.1419]
[1748696176006,0.79408,2536.3,2536.2,5.9301]
[1748696176403,0.79408,2536.3,2536.2,5.1419]
[1748696176803,0.79408,2536.3,2536.2,1.9341]
[1748696177201,0.79408,2536.3,2536.2,2.7223]
[1748696177905,0.00591,2536.3,2536.2,2.7223]
[1748696178299,0.79408,2536.3,2536.2,2.7223]
[1748696179004,0.79408,2536.3,2536.2,1.9341]
[1748696179405,0.79408,2536.3,2536.2,2.5984]
[1748696179604,0.79408,2536.3,2536.2,1.9459]
[1748696179805,0.7882,2536.2,2536.1,3.2078]
[1748696182311,0.7882,2536.2,2536.1,3.99603]
[1748696182808,0.7882,2536.2,2536.1,3.2078]
[1748696183198,1.4641,2536.2,2536.1,3.2078]
[1748696183602,1.4641,2536.2,2536.1,4.4762]
[1748696184007,0.7882,2536.2,2536.1,4.4762]
[1748696186407,0.7882,2536.2,2536.1,5.26443]
[1748696186608,0.7882,2536.2,2536.1,4.4762]
[1748696189615,0.7882,2536.2,2536.1,5.26443]
[1748696190217,0.7882,2536.2,2536.1,4.4762]
[1748696190809,0.7882,2536.2,2536.1,5.26443]
[1748696191011,0.7882,2536.2,2536.1,4.4762]
[1748696191316,0.7882,2536.2,2536.1,3.2078]
[1748696192411,0.7882,2536.2,2536.1,4.496]
[1748696192612,0.7882,2536.2,2536.1,3.2078]
[1748696192809,0.78826,2536.0,2535.9,3.11786338]
[1748696193005,0.00591,2536.3,2535.9,3.11786338]
[1748696193213,0.00591,2536.3,2536.0,1.9611]
[1748696193412,0.78823,2536.1,2536.0,1.9611]
[1748696193615,0.78822,2536.2,2536.1,0.78823]
[1748696193812,0.7882,2536.2,2536.1,2.10622]
[1748696194011,0.7882,2536.2,2536.1,1.318]
[1748696194412,0.00591,2536.3,2536.2,0.7882]
[1748696195514,0.00591,2536.3,2536.2,2.1062]
[1748696195710,0.79408,2536.3,2536.2,2.1062]
[1748696195913,0.00591,2536.3,2536.2,1.318]
[1748696196118,0.00591,2536.3,2536.2,2.1062]
[1748696197117,1.96978,2537.2,2536.2,6.318]
[1748696197317,0.78812,2536.5,2536.3,1.9241]
[1748696197520,0.78805,2536.7,2536.6,3.2078]
[1748696197827,1.3137,2536.8,2536.3,3.99597]
[1748696198023,0.78811,2536.5,2536.4,1.2632]
[1748696198523,0.78811,2536.5,2536.4,2.05134]
[1748696198912,0.78811,2536.5,2536.4,1.2632]
[1748696199113,0.78811,2536.5,2536.4,2.05134]
[1748696199323,0.7881,2536.6,2536.4,1.2632]
[1748696199523,0.7881,2536.6,2536.5,1.3407]
[1748696201421,0.78811,2536.5,2536.4,0.78813]
[1748696201922,0.78811,2536.5,2536.4,2.12883]
[1748696202225,0.78811,2536.5,2536.4,1.3407]
[1748696203826,0.78811,2536.5,2536.4,2.12884]
[1748696204826,0.6536,2536.9,2536.4,1.3407]
[1748696205027,0.78803,2536.8,2536.7,0.78803]
[1748696205332,0.78805,2536.7,2536.6,3.99586]
[1748696205629,0.78805,2536.7,2536.6,4.64886]
[1748696206830,0.78805,2536.7,2536.6,5.96626]
[1748696208034,0.78803,2536.8,2536.7,0.78804]
[1748696208934,0.78805,2536.7,2536.6,9.08412338]
[1748696209429,0.78805,2536.7,2536.6,5.96626]
[1748696209727,0.6318,2537.0,2536.6,1.9704]
[1748696210029,1.41975,2537.0,2536.9,3.2078]
[1748696210226,2.67145,2537.0,2536.9,3.2078]
[1748696210731,0.78805,2536.7,2536.6,6.97866338]
[1748696211534,0.78805,2536.7,2536.6,3.8608]
[1748696212330,0.78805,2536.7,2536.6,4.64888]
[1748696212530,0.78805,2536.7,2536.6,3.8608]
[1748696213029,0.78805,2536.7,2536.6,4.64888]
[1748696214827,0.78805,2536.7,2536.6,3.8608]
[1748696215443,0.78803,2536.8,2536.7,0.78802]
[1748696215638,0.78803,2536.8,2536.7,2.07782]
[1748696216131,0.78803,2536.8,2536.7,1.2898]
[1748696217036,0.78803,2536.8,2536.7,2.07785]
[1748696217235,0.78803,2536.8,2536.7,1.2898]
[1748696217532,0.78803,2536.8,2536.7,2.07785]
[1748696219429,4.031,2537.0,2536.7,1.2898]
[1748696219636,6.11695,2537.0,2536.9,3.2078]
[1748696220133,0.78795,2537.0,2536.9,3.2078]
[1748696220339,0.78795,2537.0,2536.9,3.19943658]
[1748696220536,2.08595,2537.0,2536.9,3.19943658]
[1748696222437,0.78795,2537.0,2536.9,3.19943658]
[1748696222938,2.02975,2537.0,2536.9,3.19943658]
[1748696224540,0.78805,2536.7,2536.6,6.32566338]
[1748696224742,0.78803,2536.8,2536.7,0.78803]
[1748696225037,0.78803,2536.8,2536.6,7.00716338]
[1748696225038,4.81898,2537.0,2536.9,0.78797]
[1748696225234,0.78803,2536.8,2536.7,0.78803]
[1748696225435,0.78803,2536.8,2536.7,3.99583]
[1748696225742,0.78803,2536.8,2536.7,3.2078]
[1748696226342,0.78803,2536.8,2536.7,3.99585]
[1748696226541,1.46163,2536.8,2536.7,3.2078]
[1748696227041,1.46163,2536.8,2536.7,3.99585]
[1748696227942,1.46163,2536.8,2536.7,3.2078]
[1748696228344,1.46163,2536.8,2536.7,3.99585]
[1748696228642,5.49263,2536.8,2536.7,3.2078]
[1748696229142,5.49263,2536.8,2536.7,3.99585]
[1748696229542,0.6645,2537.2,2536.7,3.2078]
[1748696229743,0.78801,2536.9,2536.8,2.1199]
[1748696231950,0.78801,2536.9,2536.8,1.3319]
[1748696232245,0.78802,2536.8,2536.7,3.11195338]
[1748696232447,2.79232,2536.8,2536.7,2.29466338]
[1748696232745,0.78814,2536.4,2536.3,0.00591949]
[1748696232942,23.13514,2536.4,2536.3,0.00591949]
[1748696233544,23.80344,2536.4,2536.3,0.00591949]
[1748696233743,1.45644,2536.4,2536.3,0.00591949]
[1748696233945,23.79844,2536.4,2536.3,0.00591949]
[1748696235664,44.90856,2537.2,2536.3,5.00591949]
[1748696235960,0.78798,2536.9,2536.8,3.2078]
[1748696238860,0.78798,2536.9,2536.8,4.4698]
[1748696241959,0.78798,2536.9,2536.8,5.25779]
[1748696242164,0.634,2537.1,2536.8,4.4698]
[1748696242462,4.79195,2537.0,2536.9,0.6182]
[1748696242664,0.78798,2536.9,2536.8,3.2078]
[1748696243056,0.78798,2536.9,2536.8,4.4918]
[1748696246468,1.96973,2537.2,2536.8,4.4918]
[1748696246668,1.46199,2537.2,2537.1,3.2078]
[1748696248772,0.78798,2536.9,2536.8,3.2078]
[1748696249273,0.78798,2536.9,2536.8,4.4676]
[1748696250273,4.79198,2536.9,2536.8,4.4676]
[1748696251264,4.79198,2536.9,2536.8,3.2078]
[1748696252076,4.79198,2536.9,2536.8,4.5045]
[1748696253468,4.79198,2536.9,2536.8,3.2078]
[1748696253672,0.78811,2536.5,2536.4,3.8253]
[1748696253872,4.79211,2536.5,2536.4,3.8253]
[1748696254073,0.78814,2536.4,2536.3,4.41759646]
[1748696254273,0.78814,2536.4,2536.3,0.00591949]
[1748696254581,2.67584,2536.4,2536.3,0.00591949]
[1748696255976,2.67584,2536.4,2536.3,9.49e-06]
[1748696256177,7.67584,2536.4,2536.3,9.49e-06]
[1748696258083,7.67584,2536.4,2535.8,1.9145]
[1748696258084,0.78829,2535.9,2535.8,0.6175]
[1748696258278,0.78836,2535.7,2535.6,1.9712]
[1748696271291,18.276,2535.8,2535.5,0.6479]
[1748696271292,0.78839,2535.6,2535.5,0.6479]
[1748696271787,0.78839,2535.6,2535.5,1.8973]
[1748696272591,0.78839,2535.6,2535.5,0.6479]
[1748696273094,0.78839,2535.6,2535.5,1.9639]
[1748696275894,0.78839,2535.6,2535.5,2.03545339]
[1748696276795,1.97076,2535.9,2535.5,2.03545339]
[1748696276995,0.00591,2536.6,2536.5,0.78811]
[1748696277198,0.00591,2536.6,2536.5,3.99591]
[1748696277392,0.00591,2536.6,2536.5,3.2078]
[1748696277697,0.79399,2536.6,2536.5,3.2078]
[1748696278297,0.00591,2536.6,2536.5,5.33191]
[1748696281702,0.79399,2536.6,2536.5,5.33191]
[1748696282504,0.79399,2536.6,2536.5,4.5438]
[1748696283001,0.79399,2536.6,2536.5,5.33191]
[1748696283196,0.79399,2536.6,2536.5,4.5438]
[1748696284305,0.79399,2536.6,2536.5,5.33191]
[1748696284999,0.79399,2536.6,2536.5,4.5438]
[1748696285502,4.78799,2536.6,2536.5,4.5438]
[1748696286003,4.78799,2536.6,2536.5,5.33191]
[1748696286205,4.78799,2536.6,2536.5,4.5438]
[1748696286404,4.78799,2536.6,2536.5,5.33191]
[1748696286705,0.00591,2536.6,2536.5,5.33191]
[1748696291101,3.994,2536.9,2536.5,5.33191]
[1748696291306,3.994,2536.9,2536.8,3.2078]
[1748696291507,4.78198,2536.9,2536.8,3.99581]
[1748696293106,4.78198,2536.9,2536.8,3.2078]
[1748696293310,0.78817,2536.3,2536.2,7.78465697]
[1748696293511,0.78817,2536.3,2536.2,7.11095697]
[1748696293806,0.78817,2536.3,2536.2,3.99598]
[1748696295408,0.78828,2536.0,2535.9,3.2078]
[1748696295607,27.44321,2536.4,2535.9,3.99607]
[1748696295608,1.9247,2536.2,2535.9,3.99607]
[1748696295904,3.2078,2536.7,2535.9,3.2078]
[1748696296207,0.78816,2536.4,2536.3,0.78816]
[1748696296406,0.78818,2536.3,2536.2,0.78818]
[1748696296702,0.78818,2536.3,2536.2,1.3374]
[1748696298913,0.78818,2536.3,2536.2,2.1256]
[1748696299611,0.78818,2536.3,2536.2,1.3374]
[1748696299805,4.77218,2536.3,2536.2,1.3374]
[1748696300909,0.78818,2536.3,2536.2,1.3374]
[1748696301106,4.77218,2536.3,2536.2,1.3374]
[1748696301508,0.78818,2536.3,2536.2,1.3374]
[1748696301702,4.77218,2536.3,2536.2,1.3374]
[1748696302306,4.77218,2536.3,2536.2,2.1256]
[1748696302813,4.77218,2536.3,2536.2,1.3374]
[1748696303607,3.2078,2537.2,2536.2,9.5452]
[1748696303814,0.78809,2536.6,2536.5,3.99589]
[1748696304006,0.78809,2536.6,2536.5,3.2078]
[1748696304710,0.78806,2536.7,2536.6,0.78806]
[1748696304899,0.78806,2536.7,2536.6,2.79696]
[1748696305301,0.78806,2536.7,2536.6,2.0089]
[1748696305817,0.78806,2536.7,2536.6,2.79698]
[1748696306112,4.77206,2536.7,2536.6,2.79698]
[1748696306509,4.77206,2536.7,2536.6,2.0089]
[1748696306717,0.78808,2536.6,2536.5,2.34227511]
[1748696306914,0.78808,2536.6,2536.2,3.2078]
[1748696306915,0.78817,2536.3,2536.2,8.29527697]
[1748696307109,0.78817,2536.3,2536.2,7.73436697]
[1748696307311,0.78817,2536.3,2536.2,6.94617697]
[1748696307815,0.78817,2536.3,2536.2,3.8312]
[1748696308010,0.78816,2536.4,2536.3,0.78816]
[1748696309613,0.6208,2536.7,2536.2,3.8312]
[1748696309815,0.78814,2536.4,2536.3,0.78815]
[1748696310116,0.78816,2536.4,2536.3,0.78815]
[1748696311021,0.78817,2536.3,2536.2,4.61937]
[1748696311422,0.78817,2536.4,2536.3,0.78816]
[1748696312522,0.78817,2536.4,2536.2,3.8312]
[1748696312523,0.78817,2536.3,2536.2,4.61937]
[1748696313919,0.78817,2536.3,2536.2,6.94617697]
[1748696314730,0.78817,2536.3,2536.2,3.8312]
[1748696314925,0.78817,2536.3,2536.2,4.6194]
[1748696315326,0.78817,2536.3,2536.2,3.8312]
[1748696315527,0.78817,2536.3,2536.2,4.6194]
[1748696315730,0.78812,2536.5,2536.4,0.78811]
[1748696316328,4.77212,2536.5,2536.4,0.78811]
[1748696316833,0.78816,2536.4,2536.3,0.78815]
[1748696319931,3.984,2536.5,2536.2,6.94617697]
[1748696320139,0.78817,2536.3,2536.2,6.94617697]
[1748696320338,0.78817,2536.3,2536.2,7.73437697]
[1748696320637,0.78817,2536.3,2536.2,6.94617697]
[1748696321129,0.78817,2536.3,2536.2,7.73437697]
[1748696322838,0.78817,2536.3,2536.2,6.32277697]
[1748696323135,8.99597,2536.3,2536.2,3.11497697]
[1748696323331,10.97147,2536.3,2536.2,3.11497697]
[1748696323736,0.78826,2536.0,2535.9,2.35184745]
[1748696323933,7.98006,2536.0,2535.9,2.35184745]
[1748696324137,0.78836,2535.7,2535.6,3.11497697]
[1748696324331,3.99616,2535.7,2535.6,3.11497697]
[1748696324528,0.78842,2535.5,2535.2,3.11497697]
[1748696324733,4.77342,2535.5,2535.2,3.11497697]
[1748696325232,6.09302,2535.5,2534.9,8.46987697]
[1748696325437,6.09302,2535.5,2534.9,7.68127697]
[1748696325834,11.09302,2535.5,2534.9,4.5663]
[1748696326740,14.30082,2535.5,2534.9,4.5663]
[1748696328439,14.30082,2535.5,2534.9,5.35488]
[1748696328627,14.30082,2535.5,2534.9,4.5663]
[1748696329840,14.30082,2535.5,2535.4,0.07747288]
[1748696332930,32.54382,2535.5,2535.4,0.07747288]
[1748696334545,29.33602,2535.5,2535.4,0.07747288]
[1748696334745,27.54382,2535.5,2535.4,0.07747288]
[1748696335337,9.30082,2535.5,2535.4,0.07747288]
[1748696335538,27.53382,2535.5,2535.4,0.07747288]
[1748696335738,27.53282,2535.5,2535.4,0.07747288]
[1748696336244,26.20922,2535.5,2535.4,0.07747288]
[1748696336642,3.99622,2535.5,2535.4,0.07747288]
[1748696336947,0.78842,2535.5,2535.4,0.07747288]
[1748696337244,3.981,2535.6,2535.5,0.78842]
[1748696337444,3.981,2535.6,2535.5,2.11502]
[1748696337638,0.78841,2535.6,2535.5,2.11502]
[1748696337949,3.981,2535.6,2535.5,2.11502]
[1748696338143,4.76939,2535.6,2535.5,2.11502]
[1748696338547,0.78839,2535.6,2535.5,2.11502]
[1748696338748,4.76939,2535.6,2535.5,2.11502]
[1748696340039,4.76939,2535.6,2535.5,1.3266]
[1748696340647,0.78839,2535.6,2535.5,1.3266]
[1748696340842,4.76939,2535.6,2535.5,1.3266]
[1748696343251,3.981,2536.5,2535.9,1.97068]
[1748696343445,3.981,2536.5,2536.3,3.2078]
[1748696343645,0.78814,2536.4,2536.3,3.2078]
[1748696344542,0.78814,2536.4,2536.3,3.99597]
[1748696345156,0.78814,2536.4,2536.3,3.2078]
[1748696345958,0.78814,2536.4,2536.3,3.99597]
[1748696346148,3.98,2536.5,2536.4,0.78814]
[1748696347760,4.76811,2536.5,2536.4,0.78814]
[1748696348352,3.98,2536.5,2536.4,0.78814]
[1748696349156,0.78807,2536.7,2536.3,5.1782]
[1748696349455,4.76808,2536.6,2536.5,0.78811]
[1748696350157,0.78806,2536.7,2536.6,0.78808]
[1748696350361,4.76806,2536.7,2536.6,0.78808]
[1748696350953,0.7881,2536.6,2536.5,0.78809]
[1748696351960,3.98,2536.6,2536.5,0.78809]
[1748696352258,0.78806,2536.7,2536.6,0.78808]
[1748696352460,4.76806,2536.7,2536.6,0.78808]
[1748696352858,4.76806,2536.7,2536.6,3.99588]
[1748696353264,0.78801,2536.8,2536.7,0.78801]
[1748696353463,4.76801,2536.8,2536.7,1.45161]
[1748696356966,4.76801,2536.8,2536.7,0.6636]
[1748696357166,3.976,2536.8,2536.7,0.6636]
[1748696357565,4.76401,2536.8,2536.7,1.45164]
[1748696357767,0.78801,2536.8,2536.7,1.45164]
[1748696357968,4.76401,2536.8,2536.7,1.45164]
[1748696358366,4.76401,2536.8,2536.7,0.6636]
[1748696358860,0.78801,2536.8,2536.7,1.45164]
[1748696359063,3.976,2537.1,2536.8,1.97001]
[1748696359261,3.976,2537.1,2537.0,3.99575]
[1748696361171,0.627,2537.2,2537.1,0.78792]
[1748696361471,4.602,2537.2,2537.1,0.78792]
[1748696362158,0.627,2537.2,2537.1,0.78792]
[1748696362472,0.1553944,2537.3,2537.0,3.2078]
[1748696362473,0.1553944,2537.3,2537.2,0.78789]
[1748696363169,0.1553944,2537.3,2537.2,1.44519]
[1748696363669,0.1553944,2537.3,2537.2,2.69319]
[1748696364562,3.975,2537.7,2537.6,0.78776]
[1748696364768,3.975,2537.7,2537.6,3.99556]
[1748696366268,0.616,2538.0,2537.6,3.2078]
[1748696366458,3.975,2537.7,2537.6,3.99557]
[1748696368070,4.76273,2537.7,2537.6,3.2078]
[1748696368268,1.2974,2537.8,2537.6,3.2078]
[1748696368470,23.03473,2537.7,2537.6,3.2078]
[1748696368968,0.78773,2537.7,2537.6,3.2078]
[1748696369172,4.76273,2537.7,2537.6,3.2078]
[1748696369472,6.06013,2537.7,2537.6,3.2078]
[1748696370570,6.06013,2537.7,2537.6,3.99557]
[1748696370772,6.06013,2537.7,2537.6,3.2078]
[1748696371363,2.08513,2537.7,2537.6,3.2078]
[1748696371568,0.78773,2537.7,2537.6,3.99555]
[1748696371867,4.76173,2537.7,2537.6,3.99555]
[1748696372073,4.76173,2537.7,2537.6,3.2078]
[1748696372470,4.76173,2537.7,2537.6,3.99557]
[1748696372672,1.43803,2537.7,2537.6,3.2078]
[1748696372864,5.41203,2537.7,2537.6,3.2078]
[1748696373373,6.73453,2537.7,2537.6,3.2078]
[1748696373876,2.76053,2537.7,2537.6,3.2078]
[1748696374072,6.73453,2537.7,2537.6,3.2078]
[1748696375275,0.78777,2537.6,2537.5,0.78777]
[1748696375477,0.78777,2537.6,2537.5,3.99557]
[1748696375975,6.73456,2537.7,2537.5,3.99557]
[1748696376369,6.73456,2537.7,2537.6,0.78777]
[1748696376668,0.78777,2537.6,2537.5,3.99558]
[1748696377175,4.76177,2537.6,2537.5,3.99558]
[1748696377769,4.76177,2537.6,2537.5,3.2078]
[1748696377978,4.76177,2537.6,2537.5,3.9956]
[1748696379177,0.78775,2537.7,2537.6,0.78773]
[1748696379471,0.616,2538.0,2537.5,3.2078]
[1748696379676,1.40368,2538.0,2537.9,3.2078]
[1748696379873,5.37768,2538.0,2537.9,3.2078]
[1748696381276,1.40368,2538.0,2537.9,3.2078]
[1748696381473,5.37768,2538.0,2537.9,3.2078]
[1748696386182,6.64348,2538.0,2537.9,3.2078]
[1748696386379,5.37768,2538.0,2537.9,3.2078]
[1748696387481,1.40368,2538.0,2537.9,3.2078]
[1748696387780,23.61468,2538.0,2537.9,3.2078]
[1748696388388,5.37268,2538.0,2537.9,3.2078]
[1748696388591,23.61068,2538.0,2537.9,3.2078]
[1748696388882,4.75668,2538.0,2537.9,3.2078]
[1748696389083,4.75668,2538.0,2537.9,4.51]
[1748696389278,0.78762,2538.1,2538.0,0.78761]
[1748696389476,23.00261,2538.1,2538.0,1.3022]
[1748696390689,23.00261,2538.1,2538.0,3.63379595]
[1748696391180,23.00261,2538.1,2538.0,4.42143595]
[1748696391386,4.75661,2538.1,2538.0,4.42143595]
[1748696391684,22.99361,2538.1,2538.0,4.42143595]
[1748696391986,22.99361,2538.1,2538.0,3.63379595]
[1748696392178,22.99361,2538.1,2538.0,1.3022]
[1748696392892,4.75661,2538.1,2538.0,2.08984]
[1748696393083,22.98661,2538.1,2538.0,2.72304]
[1748696393679,22.98661,2538.1,2538.0,1.9354]
[1748696394585,4.75661,2538.1,2538.0,2.72304]
[1748696396283,22.97261,2538.1,2538.0,2.72304]
[1748696397089,4.75661,2538.1,2538.0,2.72304]
[1748696397276,22.96961,2538.1,2538.0,2.72304]
[1748696397680,22.96961,2538.1,2538.0,1.9354]
[1748696398490,3.2078,2538.8,2538.1,1.969]
[1748696398783,1.96834,2539.0,2538.3,3.2078]
[1748696398990,0.78749,2538.5,2538.4,3.36439]
[1748696399180,0.78749,2538.5,2538.4,1.2778]